[Event "ETCC Open 2023"]
[Site "Budva"]
[Date "2023.11.14"]
[Round "4.11"]
[White "Sammalvuo, Tapani"]
[Black "Amar, Elham"]
[Result "1/2-1/2"]
[ECO "D52"]
[WhiteElo "2381"]
[BlackElo "2584"]
[Annotator "ChessBase"]
[PlyCount "163"]
[EventDate "2023.11.10"]
[EventType "team-tourn"]
[EventCountry "MNE"]
[SourceTitle "playchess.com"]
[Source "ChessBase"]
[SourceQuality "1"]
[WhiteTeam "Finland"]
[BlackTeam "Norway"]
[WhiteTeamCountry "FIN"]
[BlackTeamCountry "NOR"]
[TimeControl "40/5400+30:1800+30"]

1. d4 {[%emt 0:00:01]} Nf6 {[%emt 0:01:39]} 2. c4 {[%emt 0:00:02]} e6 {[%emt 0:00:05]} 3. Nf3 {[%emt 0:00:04]} d5 {[%emt 0:00:04]} 4. Nc3 {[%emt 0:00:05]} c6 {[%emt 0:00:04]} 5. Bg5 {[%emt 0:00:05]} Nbd7 {[%emt 0:00:06]} 6. e3 {[%emt 0:00:06]} Qa5 {[%emt 0:00:04]} 7. cxd5 {[%emt 0:00:45]} exd5 {[%emt 0:00:20]} 8. Bd3 {[%emt 1:33:22]} Ne4 {[%emt 0:12:07]} 9. O-O {[%emt 0:00:00]} Nxg5 {[%emt 0:01:45]} 10. Nxg5 {[%emt 0:00:00]} Nf6 {[%emt 0:00:13]} 11. f4 {[%emt 0:00:00]} Bb4 {[%emt 0:05:54]} 12. Qc2 {[%emt 0:00:00]} h6 {[%emt 0:03:45]} 13. Nf3 {[%emt 0:00:00]} O-O {[%emt 0:01:10]} 14. Ne5 {[%emt 0:00:00]} c5 {[%emt 0:05:39]} 15. Rac1 {[%emt 0:00:00]} Rd8 {[%emt 0:16:39]} 16. Qe2 {[%emt 0:00:00]} cxd4 {[%emt 0:09:30]} 17. exd4 {[%emt 0:00:00]} Qb6 {[%emt 0:00:59]} 18. Qe3 {[%emt 0:00:00]} Bd7 {[%emt 0:06:39]} 19. Kh1 {[%emt 0:00:00]} a6 {[%emt 0:06:45]} 20. Rf2 {[%emt 0:00:00]} Re8 {[%emt 0:06:04]} 21. h3 {[%emt 0:00:00]} Bxc3 {[%emt 0:00:08]} 22. bxc3 {[%emt 0:00:00]} Bb5 {[%emt 0:00:08]} 23. Bf5 {[%emt 0:00:00]} Qd6 {[%emt 0:04:41]} 24. g4 {[%emt 0:00:00]} Bd7 {[%emt 0:00:28]} 25. Bb1 {[%emt 0:00:00]} Ne4 {[%emt 0:00:41]} 26. Bxe4 {[%emt 0:00:00]} dxe4 {[%emt 0:00:05]} 27. c4 {[%emt 0:02:14]} f6 {[%emt 0:01:47]} 28. c5 {[%emt 0:00:13]} Qd5 {[%emt 0:00:30]} 29. Nc4 {[%emt 0:00:04]} Rad8 {[%emt 0:00:56]} 30. Nb6 {[%emt 0:01:07]} Qf7 {[%emt 0:00:12]} 31. d5 {[%emt 0:00:07]} Bb5 {[%emt 0:01:23]} 32. Rg2 {[%emt 0:02:07]} Rxd5 {[%emt 0:00:46]} 33. Nxd5 {[%emt 0:00:02]} Qxd5 {[%emt 0:00:07]} 34. Rc3 {[%emt 0:02:54]} Rd8 {[%emt 0:02:15]} 35. Kh2 {[%emt 0:00:15]} Bd3 {[%emt 0:01:27]} 36. Rd2 {[%emt 0:01:18]} f5 {[%emt 0:02:03]} 37. gxf5 {[%emt 0:00:50]} Qxf5 {[%emt 0:00:23]} 38. c6 {[%emt 0:00:42]} bxc6 {[%emt 0:01:10]} 39. Rxc6 {[%emt 0:00:11]} Rd7 {[%emt 0:00:23]} 40. Rc5 {[%emt 0:00:26]} Qf6 {[%emt 0:01:49]} 41. Re5 {[%emt 0:10:09]} Rf7 {[%emt 0:02:06]} 42. Re8+ {[%emt 0:00:14]} Kh7 {[%emt 0:00:19]} 43. Rxe4 {[%emt 0:24:37]} Bxe4 {[%emt 0:00:07]} 44. Qxe4+ {[%emt 0:00:00]} g6 {[%emt 0:01:41]} 45. Rf2 {[%emt 0:00:00]} Re7 {[%emt 0:00:39]} 46. Qd3 {[%emt 0:00:00]} Kg7 {[%emt 0:00:29]} 47. Qc2 {[%emt 0:00:00]} a5 {[%emt 0:03:29]} 48. Kg2 {[%emt 0:00:00]} Rf7 {[%emt 0:02:53]} 49. Kg3 {[%emt 0:00:00]} h5 {[%emt 0:00:20]} 50. Qb2 {[%emt 0:00:00]} Rc7 {[%emt 0:00:06]} 51. Qxf6+ {[%emt 0:00:00]} Kxf6 {[%emt 0:00:03]} 52. Rf3 {[%emt 0:00:00]} a4 {[%emt 0:00:15]} 53. Ra3 {[%emt 0:00:00]} Rc4 {[%emt 0:00:10]} 54. Re3 {[%emt 0:00:00]} Rd4 {[%emt 0:00:21]} 55. Kf3 {[%emt 0:00:00]} g5 {[%emt 0:00:55]} 56. fxg5+ {[%emt 0:00:00]} Kxg5 {[%emt 0:00:04]} 57. Kg3 {[%emt 0:00:00]} h4+ {[%emt 0:00:05]} 58. Kf3 {[%emt 0:00:00]} Rf4+ {[%emt 0:00:38]} 59. Kg2 {[%emt 0:00:00]} Kf5 {[%emt 0:00:07]} 60. a3 {[%emt 0:00:00]} Re4 {[%emt 0:00:25]} 61. Rc3 {[%emt 0:00:00]} Kf4 {[%emt 0:00:36]} 62. Kf2 {[%emt 0:00:00]} Ke5 {[%emt 0:00:33]} 63. Kf3 {[%emt 0:00:00]} Kd4 {[%emt 0:00:54]} 64. Rc8 {[%emt 0:00:00]} Re3+ {[%emt 0:00:12]} 65. Kg4 {[%emt 0:00:00]} Rxa3 {[%emt 0:34:40]} 66. Ra8 {[%emt 0:00:00]} Ra1 {[%emt 0:00:00]} 67. Kxh4 {[%emt 0:00:00]} a3 {[%emt 0:00:00]} 68. Kh5 {[%emt 0:00:00]} Kc3 {[%emt 0:00:00]} 69. h4 {[%emt 0:00:00]} Kb2 {[%emt 0:00:00]} 70. Rb8+ {[%emt 0:00:44]} Ka2 {[%emt 0:00:00]} 71. Kh6 {[%emt 0:00:10]} Rb1 {[%emt 0:00:00]} 72. Ra8 {[%emt 0:00:06]} Rb4 {[%emt 0:00:00]} 73. h5 {[%emt 0:00:09]} Kb3 {[%emt 0:00:00]} 74. Rxa3+ {[%emt 0:00:50]} Kxa3 {[%emt 0:00:00]} 75. Kg7 {[%emt 0:00:04]} Rg4+ {[%emt 0:00:00]} 76. Kf6 {[%emt 0:00:06]} Rh4 {[%emt 0:00:00]} 77. Kg6 {[%emt 0:00:11]} Kb4 {[%emt 0:00:00]} 78. h6 {[%emt 0:00:02]} Kc5 {[%emt 0:00:00]} 79. h7 {[%emt 0:00:03]} Kd6 {[%emt 0:00:00]} 80. Kg7 {[%emt 0:00:03]} Ke7 {[%emt 0:00:00]} 81. h8=Q {[%emt 0:00:35]} Rxh8 {[%emt 0:00:00]} 82. Kxh8 {[%emt 0:00:34]} 1/2-1/2

[Event "ETCC Open 2023"]
[Site "Budva"]
[Date "2023.11.14"]
[Round "4.12"]
[White "Kaasen, Tor Fredrik"]
[Black "Wartiovaara, Oliver"]
[Result "1-0"]
[ECO "E60"]
[WhiteElo "2471"]
[BlackElo "2270"]
[Annotator "ChessBase"]
[PlyCount "57"]
[EventDate "2023.11.10"]
[EventType "team-tourn"]
[EventCountry "MNE"]
[SourceTitle "playchess.com"]
[Source "ChessBase"]
[SourceQuality "1"]
[WhiteTeam "Norway"]
[BlackTeam "Finland"]
[WhiteTeamCountry "NOR"]
[BlackTeamCountry "FIN"]
[TimeControl "40/5400+30:1800+30"]

1. d4 {[%emt 0:00:26]} Nf6 {[%emt 0:00:23]} 2. c4 {[%emt 0:00:14]} g6 {[%emt 0:00:06]} 3. g3 {[%emt 0:00:38]} Bg7 {[%emt 0:02:45]} 4. Bg2 {[%emt 0:00:31]} O-O {[%emt 0:00:29]} 5. Nc3 {[%emt 0:01:03]} d6 {[%emt 0:00:07]} 6. Nf3 {[%emt 0:00:36]} Bf5 {[%emt 0:00:57]} 7. O-O {[%emt 0:01:06]} Ne4 {[%emt 0:00:07]} 8. Nh4 {[%emt 0:01:43]} Nxc3 {[%emt 0:00:14]} 9. bxc3 {[%emt 0:00:09]} Bc8 {[%emt 0:00:21]} 10. f4 {[%emt 0:00:21]} e5 {[%emt 0:28:50]} 11. f5 {[%emt 0:02:44]} exd4 {[%emt 0:01:06]} 12. fxg6 {[%emt 0:10:50]} fxg6 {[%emt 0:02:03]} 13. Rxf8+ {[%emt 0:02:35]} Qxf8 {[%emt 0:01:40]} 14. cxd4 {[%emt 0:00:52]} c5 {[%emt 0:00:23]} 15. Bb2 {[%emt 0:12:36]} Nc6 {[%emt 0:02:22]} 16. e3 {[%emt 0:00:48]} cxd4 {[%emt 0:11:24]} 17. exd4 {[%emt 0:03:58]} Bf6 {[%emt 0:06:02]} 18. Qd2 {[%emt 0:08:59]} Qg7 {[%emt 0:00:15]} 19. Rd1 {[%emt 0:18:28]} Bg4 {[%emt 0:00:32]} 20. Nf3 {[%emt 0:00:30]} Re8 {[%emt 0:04:11]} 21. h3 {[%emt 0:04:55]} Bf5 {[%emt 0:00:28]} 22. g4 {[%emt 0:02:22]} Bd7 {[%emt 0:07:49]} 23. Ng5 {[%emt 0:04:57]} Qe7 {[%emt 0:13:09]} 24. Bd5+ {[%emt 0:02:44]} Kg7 {[%emt 0:00:25]} 25. Ne4 {[%emt 0:00:27]} Bh4 {[%emt 0:01:13]} 26. Ba3 {[%emt 0:04:55]} Bf6 {[%emt 0:06:22]} 27. Nxf6 {[%emt 0:04:56]} Qxf6 {[%emt 0:00:05]} 28. Rf1 {[%emt 0:00:16]} Qh4 {[%emt 0:00:05]} 29. Qf4 {[%emt 0:01:05]} 1-0

[Event "ETCC Open 2023"]
[Site "Budva"]
[Date "2023.11.14"]
[Round "4.13"]
[White "Van Foreest, Jorden"]
[Black "Rapport, Richard"]
[Result "1/2-1/2"]
[ECO "C42"]
[WhiteElo "2700"]
[BlackElo "2748"]
[Annotator "TA"]
[PlyCount "48"]
[EventDate "2023.11.10"]
[EventType "team-tourn"]
[EventCountry "MNE"]
[SourceTitle "playchess.com"]
[Source "ChessBase"]
[SourceQuality "1"]
[WhiteTeam "Netherlands"]
[BlackTeam "Romania"]
[WhiteTeamCountry "NED"]
[BlackTeamCountry "ROU"]
[TimeControl "40/5400+30:1800+30"]

{[%evp 21,48,0,0,0,22,22,20,-23,-24,-50,-15,-42,0,-37,-34,-35,0,0,0,0,0,0,0,0,0,0,0,0,0]} 1. e4 {[%emt 0:00:06]} e5 {[%emt 0:00:53]} 2. Nf3 {[%emt 0:00:10]} Nf6 {[%emt 0:00:13]} 3. Nxe5 {[%emt 0:00:29]} d6 {[%emt 0:00:09]} 4. Nf3 {[%emt 0:00:06]} Nxe4 {[%emt 0:00:06]} 5. d4 {[%emt 0:00:20]} d5 {[%emt 0:00:17]} 6. Bd3 {[%emt 0:00:21]} Nc6 {[%emt 0:00:20]} 7. O-O {[%emt 0:01:00]} Be7 {[%emt 0:00:08]} 8. Re1 {[%emt 0:02:59]} Bg4 {[%emt 0:01:26]} 9. c4 {[%emt 0:23:24]} Nf6 {[%emt 0:00:47]} 10. Nc3 {[%emt 0:00:04] The modern move.} Bxf3 {[%emt 0:01:07]} 11. Qxf3 {[%emt 0:00:25]} Nxd4 {[%emt 0:00:06]} 12. Qd1 {[%emt 0:04:04] C42: Petroff Defence: 3 Nxe5 and unusual White 3rd moves.} dxc4 {[%emt 0:06:17]} (12... c6 $5) 13. Bxc4 {[%emt 0:00:06]} ({Much weaker is} 13. Qa4+ c6 14. Qxc4 b5 $15) 13... c5 {[%emt 0:02:06]} 14. Bg5 {[%emt 0:00:31][%mdl 1024] White has compensation. This pair of bishops is nice.} (14. Qa4+ $5 Kf8 15. Ne2 $14) 14... O-O {[%emt 1:23:35] [#]} 15. Qd3 $146 {[%emt 0:00:05]} ({Predecessor:} 15. Bxf6 Bxf6 16. Ne4 b6 17. Rc1 g6 18. Re3 Bg5 19. Nxg5 Qxg5 20. Rg3 Qf6 21. Qg4 Rfe8 22. h4 {0-1 Purgaj,C (1698)-Delmonico,N (1944) Davos Summer op 21st 2022 (5)}) 15... Qd6 {[%emt 0:00:00][%cal Of6g4]} (15... a6 $5 {[%cal Rb7b5]} 16. Qh3 Re8 $15) 16. Qh3 {[%emt 0:17:29][%cal Oe1e7] Dodges Ng4} Rad8 {[%emt 0:00:00]} 17. Rad1 {[%emt 0:06:56]} (17. Bd3 $5 h6 18. Bxh6 gxh6 19. Qxh6 $11) 17... h6 {[%emt 0:00:00]} 18. Nb5 {[%emt 0:09:09]} Qd7 {[%emt 0:00:00] [#] And now ...Qxh3 would win.} 19. Nxd4 {[%emt 0:03:53] The position is equal.} cxd4 {[%emt 0:00:00]} 20. Qxd7 {[%emt 0:00:15]} Rxd7 {[%emt 0:00:00]} 21. Bb5 {[%emt 0:00:05]} Rd5 {[%emt 0:00:00]} 22. Bc4 {[%emt 0:00:16] [#] Threatens to win with Bxf6.} Rd7 {[%emt 0:00:00]} 23. Bb5 {[%emt 0:00:04]} Rd5 {[%emt 0:00:00]} 24. Bc4 {[%emt 0:00:06] Hoping for Bxf6.} Rd7 {[%emt 0:00:00] Weighted Error Value: White=0.09 (flawless) /Black=0.15 (very precise)} 1/2-1/2

[Event "ETCC Open 2023"]
[Site "Budva"]
[Date "2023.11.14"]
[Round "4.14"]
[White "Deac, Bogdan-Daniel"]
[Black "Warmerdam, Max"]
[Result "1/2-1/2"]
[ECO "B31"]
[WhiteElo "2700"]
[BlackElo "2638"]
[Annotator "TA"]
[PlyCount "55"]
[EventDate "2023.11.10"]
[EventType "team-tourn"]
[EventCountry "MNE"]
[SourceTitle "playchess.com"]
[Source "ChessBase"]
[SourceQuality "1"]
[WhiteTeam "Romania"]
[BlackTeam "Netherlands"]
[WhiteTeamCountry "ROU"]
[BlackTeamCountry "NED"]
[TimeControl "40/5400+30:1800+30"]

{[%evp 9,55,4,4,0,0,13,14,14,18,0,7,14,14,0,0,0,0,-18,-14,-12,-13,-10,-16,-15,-9,0,-1,-8,14,12,39,39,52,0,0,0,0,0,0,0,0,0,0,0,0,0,0,0]} 1. e4 {[%emt 0:00:03]} c5 {[%emt 0:00:11]} 2. h3 {[%emt 0:00:13]} d6 {[%emt 0:03:36]} 3. Bb5+ {[%emt 0:00:16]} Bd7 {[%emt 0:00:40]} 4. c4 {[%emt 0:00:16]} Nc6 {[%emt 0:01:52]} 5. Ne2 {[%emt 0:00:07]} g6 {[%emt 0:01:04] [#]} 6. d4 $146 {[%emt 0:06:30] B31: Sicilian: 2...Nc6 3 Bb5 g6.} ({Predecessor:} 6. O-O Bg7 7. d3 Nf6 8. Be3 O-O 9. Nbc3 a6 10. Ba4 Rb8 11. f4 Ne8 12. f5 {1-0 Deac,B (2701)-Yaniv,Y (2382) EU-Cup 38th Durres 2023 (1.1)}) 6... cxd4 {[%emt 0:00:09]} 7. Nxd4 {[%emt 0:00:06]} Nf6 {[%emt 0:00:10]} 8. Nc3 {[%emt 0:00:10]} Nxd4 {[%emt 0:00:06]} 9. Qxd4 {[%emt 0:03:29]} Bg7 {[%emt 0:01:59]} 10. Bxd7+ {[%emt 0:13:01]} Qxd7 {[%emt 0:00:36]} 11. O-O {[%emt 0:01:23]} O-O {[%emt 0:06:29][%cal Of6g4]} 12. Qd3 {[%emt 0:02:38]} Qc6 {[%emt 0:18:14]} 13. Bd2 {[%emt 0:23:15]} Nd7 {[%emt 0:06:49][%cal Bf6d7,Bd7c5,Bc5e6][%mdl 32]} 14. b3 {[%emt 0:00:22]} Nc5 {[%emt 0:02:12] Repels f3} 15. Qe3 {[%emt 0:00:19][%cal Oc3d5]} Bxc3 {[%emt 0:01:36]} 16. Bxc3 {[%emt 0:00:14]} Qxe4 {[%emt 0:02:04]} 17. Qh6 {[%emt 0:02:01][%csl Gc3][%cal Rh6g7] [#]} e5 {[%emt 0:00:07]} 18. Rad1 {[%emt 0:02:58]} Ne6 {[%emt 0:08:14] Hoping for ...Nf4.} 19. f3 $1 {[%emt 0:05:40]} Qf5 {[%emt 0:14:05]} 20. Rxd6 {[%emt 0:07:15]} Nf4 {[%emt 0:00:47] [#] White must now prevent ...Ne2+.} 21. Bd2 {[%emt 0:09:59]} (21. Re1 $14 Rfe8 22. Bd2) 21... Rad8 $11 {[%emt 0:03:16] The position is equal.} 22. Rxd8 {[%emt 0:00:20]} Rxd8 {[%emt 0:00:14]} 23. Bxf4 {[%emt 0:00:39]} exf4 {[%emt 0:05:27] KQR-KQR} 24. Re1 {[%emt 0:00:29] Inhibits Qe5.} Qc5+ {[%emt 0:07:37]} 25. Kf1 {[%emt 0:00:09]} Qf5 {[%emt 0:00:17]} 26. Kg1 {[%emt 0:05:12]} Qc5+ {[%emt 0:00:06]} 27. Kf1 {[%emt 0:00:08]} Qf5 {[%emt 0:00:08]} 28. Kg1 {[%emt 0:09:56] Weighted Error Value: White=0.05 (flawless) /Black=0.04 (flawless)} 1/2-1/2

[Event "ETCC Open 2023"]
[Site "Budva"]
[Date "2023.11.14"]
[Round "4.15"]
[White "Bok, Benjamin"]
[Black "Shevchenko, Kirill"]
[Result "1/2-1/2"]
[ECO "E06"]
[WhiteElo "2621"]
[BlackElo "2665"]
[Annotator "ChessBase"]
[PlyCount "103"]
[EventDate "2023.11.10"]
[EventType "team-tourn"]
[EventCountry "MNE"]
[SourceTitle "playchess.com"]
[Source "ChessBase"]
[SourceQuality "1"]
[WhiteTeam "Netherlands"]
[BlackTeam "Romania"]
[WhiteTeamCountry "NED"]
[BlackTeamCountry "ROU"]
[TimeControl "40/5400+30:1800+30"]

1. Nf3 {[%emt 0:00:28]} d5 {[%emt 0:00:24]} 2. d4 {[%emt 0:00:24]} Nf6 {[%emt 0:00:09]} 3. c4 {[%emt 0:00:08]} e6 {[%emt 0:00:06]} 4. g3 {[%emt 0:00:09]} Be7 {[%emt 0:01:29]} 5. Bg2 {[%emt 0:00:09]} O-O {[%emt 0:00:06]} 6. Nc3 {[%emt 0:00:28]} Nbd7 {[%emt 0:02:51]} 7. Qd3 {[%emt 0:00:36]} a6 {[%emt 0:01:44]} 8. b3 {[%emt 0:01:16]} b5 {[%emt 0:02:58]} 9. cxd5 {[%emt 0:00:12]} exd5 {[%emt 0:07:49]} 10. Ne5 {[%emt 0:02:59]} Bb7 {[%emt 0:01:59]} 11. O-O {[%emt 0:08:47]} Re8 {[%emt 0:14:10]} 12. Nxd7 {[%emt 0:28:09]} Qxd7 {[%emt 0:00:07]} 13. Bg5 {[%emt 0:00:16]} b4 {[%emt 0:18:04]} 14. Na4 {[%emt 0:03:51]} Bc6 {[%emt 0:00:30]} 15. Rfc1 {[%emt 0:16:50]} Bxa4 {[%emt 0:09:31]} 16. bxa4 {[%emt 0:00:07]} Ne4 {[%emt 0:00:04]} 17. Bxe7 {[%emt 0:00:58]} Rxe7 {[%emt 0:00:07]} 18. a5 {[%emt 0:03:54]} Qa4 {[%emt 0:07:46]} 19. e3 {[%emt 0:05:33]} Qxa5 {[%emt 0:13:43]} 20. a3 {[%emt 0:00:11]} bxa3 {[%emt 0:07:37]} 21. Qxa3 {[%emt 0:00:25]} Qxa3 {[%emt 0:00:03]} 22. Rxa3 {[%emt 0:00:05]} Ra7 {[%emt 0:01:29]} 23. Ra5 {[%emt 0:04:28]} Nf6 {[%emt 0:06:28]} 24. Bxd5 {[%emt 0:04:46]} Nxd5 {[%emt 0:00:08]} 25. Rxd5 {[%emt 0:00:02]} g6 {[%emt 0:01:26]} 26. Ra5 {[%emt 0:01:33]} Re6 {[%emt 0:00:28]} 27. Rac5 {[%emt 0:02:29]} Re7 {[%emt 0:00:14]} 28. Kf1 {[%emt 0:05:42]} Kf8 {[%emt 0:00:41]} 29. Ke2 {[%emt 0:04:58]} Ke8 {[%emt 0:00:01]} 30. Kd3 {[%emt 0:00:16]} Kd8 {[%emt 0:01:35]} 31. Rc6 {[%emt 0:02:10]} Re6 {[%emt 0:01:02]} 32. Rxe6 {[%emt 0:01:52]} fxe6 {[%emt 0:00:01]} 33. Ra1 {[%emt 0:00:12]} a5 {[%emt 0:00:04]} 34. Kc4 {[%emt 0:01:33]} Kd7 {[%emt 0:00:01]} 35. Ra4 {[%emt 0:00:49]} Rb7 {[%emt 0:01:19]} 36. Rxa5 {[%emt 0:00:45]} Rb2 {[%emt 0:00:07]} 37. f4 {[%emt 0:00:28]} Rxh2 {[%emt 0:00:14]} 38. Kd3 {[%emt 0:00:45]} Rg2 {[%emt 0:01:22]} 39. Rg5 {[%emt 0:00:07]} Ke7 {[%emt 0:00:55]} 40. Ke4 {[%emt 0:00:11]} Kf6 {[%emt 0:00:23]} 41. Kf3 {[%emt 0:31:20]} Rc2 {[%emt 0:02:05]} 42. g4 {[%emt 0:00:00]} h6 {[%emt 0:04:50]} 43. Ra5 {[%emt 0:00:00]} g5 {[%emt 0:00:38]} 44. f5 {[%emt 0:00:00]} exf5 {[%emt 0:00:59]} 45. Rxf5+ {[%emt 0:00:00]} Ke6 {[%emt 0:01:20]} 46. Ra5 {[%emt 0:00:00]} c6 {[%emt 0:02:38]} 47. Re5+ {[%emt 0:00:00]} Kf7 {[%emt 0:02:52]} 48. Rf5+ {[%emt 0:00:45]} Ke7 {[%emt 0:01:01]} 49. Re5+ {[%emt 0:00:28]} Kf7 {[%emt 0:00:06]} 50. Rf5+ {[%emt 0:00:04]} Ke7 {[%emt 0:00:06]} 51. Ra5 {[%emt 0:01:21]} Ke6 {[%emt 0:00:24]} 52. Re5+ {[%emt 0:02:52]} 1/2-1/2

[Event "ETCC Open 2023"]
[Site "Budva"]
[Date "2023.11.14"]
[Round "4.16"]
[White "Lupulescu, Constantin"]
[Black "Vrolijk, Liam"]
[Result "1/2-1/2"]
[ECO "C47"]
[WhiteElo "2582"]
[BlackElo "2569"]
[Annotator "ChessBase"]
[PlyCount "97"]
[EventDate "2023.11.10"]
[EventType "team-tourn"]
[EventCountry "MNE"]
[SourceTitle "playchess.com"]
[Source "ChessBase"]
[SourceQuality "1"]
[WhiteTeam "Romania"]
[BlackTeam "Netherlands"]
[WhiteTeamCountry "ROU"]
[BlackTeamCountry "NED"]
[TimeControl "40/5400+30:1800+30"]

1. e4 {[%emt 0:00:04]} e5 {[%emt 0:00:07]} 2. Nf3 {[%emt 0:00:04]} Nc6 {[%emt 0:00:05]} 3. Nc3 {[%emt 0:00:04]} Nf6 {[%emt 0:00:09]} 4. d4 {[%emt 0:00:06]} exd4 {[%emt 0:00:07]} 5. Nxd4 {[%emt 0:00:04]} Bb4 {[%emt 0:00:11]} 6. Nxc6 {[%emt 0:00:19]} bxc6 {[%emt 0:00:09]} 7. Bd3 {[%emt 0:00:06]} O-O {[%emt 0:02:12]} 8. O-O {[%emt 0:00:30]} d5 {[%emt 0:00:06]} 9. exd5 {[%emt 0:00:07]} cxd5 {[%emt 0:00:26]} 10. h3 {[%emt 0:00:08]} Be6 {[%emt 0:06:59]} 11. Qf3 {[%emt 0:04:08]} Be7 {[%emt 0:15:02]} 12. Ne2 {[%emt 0:15:19]} c5 {[%emt 0:03:24]} 13. c3 {[%emt 0:01:11]} Qd7 {[%emt 0:08:08]} 14. Bf4 {[%emt 0:10:14]} Qb7 {[%emt 0:11:41]} 15. b3 {[%emt 0:06:53]} a5 {[%emt 0:01:31]} 16. Rab1 {[%emt 0:03:02]} Qc6 {[%emt 0:05:40]} 17. Ng3 {[%emt 0:06:27]} Bd6 {[%emt 0:03:33]} 18. Rfe1 {[%emt 0:05:03]} Rfe8 {[%emt 0:01:12]} 19. Bg5 {[%emt 0:11:42]} Nd7 {[%emt 0:02:40]} 20. Nf5 {[%emt 0:05:46]} Ne5 {[%emt 0:09:53]} 21. Qg3 {[%emt 0:00:20]} Bxf5 {[%emt 0:00:14]} 22. Bxf5 {[%emt 0:00:04]} Ng6 {[%emt 0:00:53]} 23. Qd3 {[%emt 0:02:54]} Rxe1+ {[%emt 0:02:15]} 24. Rxe1 {[%emt 0:00:03]} a4 {[%emt 0:00:09]} 25. Rd1 {[%emt 0:14:03]} axb3 {[%emt 0:00:57]} 26. axb3 {[%emt 0:00:03]} h6 {[%emt 0:08:59]} 27. Bxg6 {[%emt 0:06:23]} fxg6 {[%emt 0:00:42]} 28. Bxh6 {[%emt 0:01:11]} Ra3 {[%emt 0:06:14]} 29. c4 {[%emt 0:03:43]} gxh6 {[%emt 0:03:10]} 30. Qxg6+ {[%emt 0:00:18]} Kf8 {[%emt 0:00:07]} 31. Qxh6+ {[%emt 0:01:52]} Kg8 {[%emt 0:02:18]} 32. Qg6+ {[%emt 0:00:56]} Kf8 {[%emt 0:00:07]} 33. Qf6+ {[%emt 0:00:47]} Kg8 {[%emt 0:00:07]} 34. Qe6+ {[%emt 0:00:28]} Kg7 {[%emt 0:01:19]} 35. cxd5 {[%emt 0:00:16]} Qc7 {[%emt 0:01:15]} 36. Qg4+ {[%emt 0:01:18]} Kf8 {[%emt 0:00:29]} 37. Qg6 {[%emt 0:01:05]} Qe7 {[%emt 0:01:01]} 38. Qh6+ {[%emt 0:01:27]} Kf7 {[%emt 0:00:27]} 39. Qh7+ {[%emt 0:00:14]} Kf8 {[%emt 0:00:45]} 40. Qh8+ {[%emt 0:00:34]} Kf7 {[%emt 0:00:06]} 41. Qh7+ {[%emt 0:19:36]} Kf8 {[%emt 0:00:20]} 42. Qh6+ {[%emt 0:01:06]} Kf7 {[%emt 0:01:56]} 43. Kf1 {[%emt 0:03:01]} Qe5 {[%emt 0:06:07]} 44. Re1 {[%emt 0:01:52]} Qxd5 {[%emt 0:02:44]} 45. Qh7+ {[%emt 0:00:31]} Kf6 {[%emt 0:02:08]} 46. Qh6+ {[%emt 0:00:32]} Kf7 {[%emt 0:00:27]} 47. Qh7+ {[%emt 0:00:06]} Kf6 {[%emt 0:00:07]} 48. Qh8+ {[%emt 0:04:27]} Kf7 {[%emt 0:01:06]} 49. Qh7+ {[%emt 0:03:28]} 1/2-1/2